bitfinex/quotes_ETHUSD_20241104
["timestamp","ask_amount","ask_price","bid_price","bid_amount"]
[1730752080974,4.11713,2428.9,2428.8,0.44410571]
[1730752081387,1.54015561,2429.0,2428.8,0.44410571]
[1730752081560,1.54015561,2429.0,2428.9,0.44410571]
[1730752081763,5.65707561,2429.0,2428.9,0.44410571]
[1730752083800,5.65707561,2429.0,2428.9,0.44399869]
[1730752086189,1.54015561,2429.0,2428.9,0.44399869]
[1730752086526,5.65707561,2429.0,2428.9,0.44399869]
[1730752087588,5.65707561,2429.0,2428.7,1.85819915]
[1730752087849,1.54015561,2429.0,2428.8,0.72846047]
[1730752088049,1.54015561,2429.0,2428.9,0.44385815]
[1730752088848,1.62066948,2429.0,2428.9,0.44385815]
[1730752090606,5.73758948,2429.0,2428.9,0.44385815]
[1730752090920,7.50872443,2429.0,2428.9,0.44385815]
[1730752092650,9.04888004,2429.0,2428.9,0.44385815]
[1730752092961,10.34443898,2429.0,2428.9,0.44385815]
[1730752093117,7.50872443,2429.0,2428.9,0.44385815]
[1730752093456,10.34588095,2429.0,2428.9,0.44385815]
[1730752093613,9.23613635,2429.0,2428.9,0.44385815]
[1730752095629,9.23613635,2429.0,2428.9,0.17070473]
[1730752095816,7.50872443,2429.0,2428.9,0.17070473]
[1730752096151,8.80562765,2429.0,2428.9,0.44379124]
[1730752097458,7.26547204,2429.0,2428.9,0.44379124]
[1730752097660,6.28003709,2429.0,2428.9,0.44379124]
[1730752098165,4.11734,2428.8,2428.6,0.832]
[1730752098511,4.11734,2428.8,2428.7,0.44365537]
[1730752098715,4.11709,2428.9,2428.7,0.44365537]
[1730752098915,4.11709,2428.9,2428.8,0.44365537]
[1730752101414,4.11709,2428.9,2428.6,0.832]
[1730752101615,1.29690322,2429.0,2428.7,4.39033987]
[1730752101868,4.11678,2429.1,2428.7,4.39033987]
[1730752101869,5.41368322,2429.1,2428.8,0.44364114]
[1730752102157,5.41368322,2429.1,2428.9,0.44364114]
[1730752102357,9.53053322,2429.1,2429.0,0.4436371]
[1730752103487,5.41368322,2429.1,2429.0,0.4436371]
[1730752103665,4.11678,2429.1,2429.0,0.4436371]
[1730752103867,4.19713486,2429.1,2429.0,0.4436371]
[1730752105078,4.11692,2429.0,2428.9,0.7966]
[1730752105279,4.11692,2429.0,2428.9,1.06957447]
[1730752105587,5.65707561,2429.0,2428.9,0.44356737]
[1730752105791,5.73743047,2429.0,2428.9,0.44356737]
[1730752106091,5.73743047,2429.0,2428.7,0.7966]
[1730752106092,4.11724,2428.9,2428.7,0.7966]
[1730752106294,4.11723,2428.9,2428.8,0.44362422]
[1730752106649,5.00848486,2428.9,2428.8,0.44362422]
[1730752107655,5.53152816,2428.9,2428.8,0.44362422]
[1730752107888,6.82843138,2428.9,2428.8,0.44362422]
[1730752108096,5.53152816,2428.9,2428.8,0.44362422]
[1730752108390,7.25894008,2428.9,2428.8,0.44362422]
[1730752108586,7.25894008,2428.9,2428.8,0.44358709]
[1730752109305,6.73589678,2428.9,2428.8,0.44358709]
[1730752109592,6.73589678,2428.9,2428.8,0.17060048]
[1730752110253,6.30513997,2428.9,2428.8,0.17060048]
[1730752110670,5.00848486,2428.9,2428.8,0.17060048]
[1730752111412,6.73589678,2428.9,2428.8,0.17060048]
[1730752111607,8.19137357,2428.9,2428.8,0.17060048]
[1730752112210,6.46396165,2428.9,2428.8,0.17060048]
[1730752112806,8.19137357,2428.9,2428.8,0.17060048]
[1730752113824,4.11764,2428.6,2428.2,4.91486]
[1730752114150,4.19525818,2428.5,2428.2,0.7966]
[1730752114308,4.19525818,2428.5,2428.2,2.58295515]
[1730752114608,4.19525818,2428.5,2428.2,1.86841301]
[1730752115483,4.19525818,2428.5,2428.2,0.7966]
[1730752116212,4.11805,2428.4,2428.2,0.7966]
[1730752116396,4.11801,2428.4,2428.2,0.7966]
[1730752116584,0.07741221,2428.3,2428.2,0.7966]
[1730752116922,0.07741221,2428.3,2428.2,1.0809709]
[1730752118331,0.07741221,2428.3,2428.2,1.35393677]
[1730752118826,4.19551221,2428.3,2428.2,1.24015339]
[1730752119407,0.07741221,2428.3,2428.2,1.24015339]
[1730752120104,4.19551221,2428.3,2428.2,1.24015339]
[1730752121931,0.07741221,2428.3,2428.2,1.24015339]
[1730752122427,4.11802,2428.4,2428.2,1.24015339]
[1730752122604,4.19551221,2428.3,2428.2,0.7966]
[1730752122812,4.19551221,2428.3,2428.2,1.24001401]
[1730752123019,0.07741221,2428.3,2428.2,0.7966]
[1730752123193,0.07741221,2428.3,2428.2,1.24001337]
[1730752124037,4.19551221,2428.3,2428.2,0.44341337]
[1730752124194,5.73566782,2428.3,2428.2,0.44341337]
[1730752124398,6.55436782,2428.3,2428.2,0.44341337]
[1730752126542,4.11842,2428.2,2427.8,0.7637]
[1730752126840,4.11842,2428.2,2427.9,0.44307874]
[1730752127019,0.07707754,2428.1,2428.0,0.44307874]
[1730752132136,0.07707754,2428.1,2428.0,0.44277626]
[1730752133811,0.07707754,2428.1,2427.8,4.88265]
[1730752134037,0.07707754,2428.1,2427.9,0.44284757]
[1730752134253,0.07707754,2428.1,2427.8,4.88265]
[1730752134254,0.07707754,2428.1,2428.0,0.44284757]
[1730752135133,9.05499,2428.3,2428.0,0.44284757]
[1730752135443,4.19535754,2428.2,2428.1,0.44284757]
[1730752136954,0.07707754,2428.2,2428.1,0.44284757]
[1730752137384,4.11837,2428.2,2428.1,0.44334384]
[1730752137568,4.19544754,2428.2,2428.1,0.44334384]
[1730752138170,4.19544754,2428.2,2428.1,0.44335062]
[1730752140843,4.11855,2428.1,2427.8,1.04813147]
[1730752141182,4.11855,2428.1,2427.9,0.44358956]
[1730752141387,4.11855,2428.1,2428.0,0.44358956]
[1730752141757,4.9369,2428.3,2428.0,0.44358956]
[1730752142083,4.1182,2428.3,2428.1,0.44358956]
[1730752142291,4.11771,2428.6,2428.2,1.24948956]
[1730752142447,4.11771,2428.6,2428.3,0.44358956]
[1730752142448,4.11781,2428.5,2428.3,0.44358956]
[1730752142648,4.11781,2428.5,2428.4,0.44358956]
[1730752143597,4.11781,2428.5,2428.4,0.44368139]
[1730752148297,4.11761,2428.6,2428.4,0.44368139]
[1730752148500,4.11761,2428.6,2428.5,0.44368139]
[1730752148701,4.11749,2428.7,2428.5,0.44368139]
[1730752148901,4.11749,2428.7,2428.6,0.17063675]
[1730752149336,4.11749,2428.7,2428.6,0.17064468]
[1730752149626,4.11749,2428.7,2428.6,0.44369554]
[1730752152951,5.41367207,2428.7,2428.6,0.17064468]
[1730752153528,4.11749,2428.7,2428.6,0.44371462]
[1730752154236,4.11749,2428.7,2428.6,0.44370939]
[1730752156162,5.41367207,2428.7,2428.6,0.44370939]
[1730752157663,5.41367207,2428.7,2428.6,0.44376967]
[1730752158081,5.41367207,2428.7,2428.6,0.17067071]
[1730752158968,5.41367207,2428.7,2428.6,0.44377682]
[1730752161283,4.11764,2428.6,2428.2,4.9241]
[1730752161445,4.11764,2428.6,2428.3,0.17069577]
[1730752161772,4.11764,2428.6,2428.4,0.44383483]
[1730752162071,4.11801,2428.4,2428.2,0.8059]
[1730752162278,4.11801,2428.4,2428.3,0.44388143]
[1730752163564,4.11801,2428.4,2428.3,0.44388996]
[1730752163945,4.19266018,2428.4,2428.3,0.44388996]
[1730752168437,4.19266018,2428.4,2428.3,0.44400663]
[1730752170083,4.19266018,2428.4,2428.2,0.8059]
[1730752170255,4.19266018,2428.4,2428.3,0.44402902]
[1730752170788,0.07465018,2428.4,2428.3,0.44402902]
[1730752170945,4.11784,2428.5,2428.3,0.44402902]
[1730752171141,4.11784,2428.5,2428.4,0.44402902]
[1730752171971,4.11784,2428.5,2428.2,0.8059]
[1730752172185,4.11784,2428.5,2428.3,0.17080663]
[1730752172358,4.11784,2428.5,2428.4,0.44412309]
[1730752175579,4.11784,2428.5,2428.2,0.8059]
[1730752175749,4.11784,2428.5,2428.4,0.1708566]
[1730752175947,4.11784,2428.5,2428.4,0.44425301]
[1730752178702,1.29618207,2428.6,2428.5,0.7528]
[1730752178905,5.41361207,2428.7,2428.5,1.19705301]
[1730752179108,5.41361207,2428.7,2428.5,0.7528]
[1730752179404,4.11743,2428.7,2428.6,0.44433222]
[1730752180196,5.41361207,2428.7,2428.6,0.44433222]
[1730752182794,5.41361207,2428.7,2428.6,0.44422069]
[1730752184433,1.29618207,2428.7,2428.6,0.44422069]
[1730752186068,1.29618207,2428.8,2428.6,0.44422069]
[1730752186267,1.29618207,2428.8,2428.5,8.98814]
[1730752186603,1.29618207,2428.8,2428.6,4.56174111]
[1730752186822,1.72741192,2428.9,2428.7,0.44417111]
[1730752186823,1.29618207,2428.9,2428.7,0.44417111]
[1730752187114,1.29618207,2428.9,2428.8,0.44417111]
[1730752187568,5.41327207,2428.9,2428.8,0.44417111]
[1730752189358,1.29618207,2428.9,2428.8,0.44417111]
[1730752190037,5.41327207,2428.9,2428.8,0.44400735]
[1730752190234,5.41327207,2428.9,2428.5,4.87044]
[1730752190550,5.41327207,2428.9,2428.6,0.44399596]
[1730752190722,5.41343207,2428.8,2428.7,0.44399596]
[1730752190912,1.29618207,2428.8,2428.7,0.44399596]
[1730752191550,9.53049207,2428.9,2428.7,0.44399596]
[1730752191759,5.41327207,2428.9,2428.8,0.44399596]
[1730752193013,6.95342768,2428.9,2428.8,0.44399596]
[1730752193232,8.68041635,2428.9,2428.8,0.44399596]
[1730752193519,8.68041635,2428.9,2428.5,0.27318027]
[1730752193520,4.11759,2428.6,2428.5,0.27318027]
[1730752193719,8.21182716,2428.6,2428.5,0.17070142]
[1730752193930,9.19289365,2428.6,2428.5,0.17070142]
[1730752194137,9.19288439,2428.6,2428.5,0.17070142]
[1730752194355,9.19290677,2428.6,2428.5,0.17070142]
[1730752194512,1.37058617,2428.6,2428.5,0.44387426]
[1730752194854,0.0749974,2428.6,2428.5,0.44387426]
[1730752195149,4.11726,2428.8,2428.5,0.44387426]
[1730752195351,4.11726,2428.8,2428.6,1.21937426]
[1730752195655,4.11726,2428.8,2428.7,0.44387426]
[1730752196552,5.41273877,2428.9,2428.7,0.44387426]
[1730752196758,1.29558877,2428.9,2428.8,0.44387426]
[1730752197054,1.29558877,2429.0,2428.9,0.7755]
[1730752197225,1.29558877,2429.0,2428.9,1.21937426]
[1730752197414,5.41236877,2429.1,2428.9,1.21937426]
[1730752197614,5.41236877,2429.1,2429.0,0.17070142]
[1730752198318,4.11678,2429.1,2429.0,0.17070142]
[1730752198637,5.41224784,2429.1,2429.0,0.17070142]
[1730752199417,1.29537607,2429.1,2429.0,0.17070142]
[1730752199618,1.29540351,2429.2,2429.1,4.11675]
[1730752199823,1.72752976,2429.3,2429.1,4.11675]
[1730752199824,1.29540351,2429.3,2429.1,0.44447205]
[1730752200045,1.29540351,2429.3,2429.2,1.24399607]
[1730752200249,1.29540351,2429.4,2429.2,1.24399607]
[1730752200449,1.29540351,2429.4,2429.3,0.44449607]
[1730752200650,1.29540351,2429.4,2429.2,0.7995]
[1730752200859,5.84362976,2429.5,2429.3,0.44488994]
[1730752200860,5.41150351,2429.5,2429.3,0.44488994]
[1730752201062,4.1161,2429.5,2429.4,0.17109596]
[1730752201458,7.19670598,2429.5,2429.4,0.17109596]
[1730752201632,4.11704,2429.0,2428.9,0.44465504]
[1730752201945,4.11704,2429.0,2428.9,0.17101977]
[1730752201946,5.65719561,2429.0,2428.9,0.17101977]
[1730752202152,4.11709,2428.9,2428.8,0.864217]
[1730752202351,4.11709,2428.9,2428.8,0.17102402]
[1730752203045,5.65707561,2429.0,2428.8,0.44469494]
[1730752203358,4.11709,2428.9,2428.5,0.8161]
[1730752203560,4.11709,2428.9,2428.6,0.44469663]
[1730752203722,4.11695,2429.0,2428.7,0.44469663]
[1730752203919,4.11695,2429.0,2428.8,0.09832726]
[1730752204160,5.41229351,2429.1,2428.9,0.88192726]
[1730752204374,5.41229351,2429.1,2428.7,0.8017]
[1730752204610,5.41229351,2429.1,2428.8,0.27369429]
[1730752204766,5.41229351,2429.1,2428.9,0.27369429]
[1730752204961,5.41229351,2429.1,2428.7,0.8017]
[1730752205168,5.41229351,2429.1,2428.8,0.27367535]
[1730752205408,5.41229351,2429.1,2428.9,0.27367535]
[1730752205597,5.41229351,2429.1,2428.7,4.91912]
[1730752205902,5.41229351,2429.1,2428.8,0.27368529]
[1730752206080,5.41229351,2429.1,2428.7,0.8017]
[1730752206277,4.11702,2429.0,2428.8,0.27369367]
[1730752206489,4.11702,2429.0,2428.7,0.8017]
[1730752206704,4.11702,2429.0,2428.8,0.27370812]
[1730752206913,4.11702,2429.0,2428.7,0.8017]
[1730752207074,4.11702,2429.0,2428.8,0.27369947]
[1730752207406,1.54015561,2429.0,2428.5,0.7871]
[1730752207709,4.11735,2428.8,2428.6,0.27373725]
[1730752207910,4.11735,2428.8,2428.7,0.27373725]
[1730752208270,4.11725,2428.9,2428.7,0.27373725]
[1730752208469,4.11725,2428.9,2428.5,4.90484]
[1730752208678,2.0,2428.8,2428.6,0.27374707]
[1730752208980,2.0,2428.8,2428.7,0.27374707]
[1730752210503,2.0,2428.8,2428.6,4.11752]
[1730752210808,2.0,2428.8,2428.7,0.2737613]
[1730752214213,2.0,2428.8,2428.6,4.11752]
[1730752214428,2.0,2428.8,2428.7,0.27177848]
[1730752214579,2.0,2428.8,2428.7,0.27177834]
[1730752214784,2.0,2428.8,2428.7,4.38919834]
[1730752216226,2.0,2428.8,2428.7,0.44162628]
[1730752216536,3.54015561,2428.8,2428.7,0.44162628]
[1730752216822,2.0,2428.8,2428.7,0.44162628]
[1730752217025,2.0,2428.8,2428.7,4.55904628]
[1730752217233,2.0,2428.8,2428.7,5.37844628]
[1730752217728,2.0,2428.8,2428.7,10.52918554]
[1730752217937,2.0,2428.8,2428.7,10.4468459]
[1730752218091,2.0,2428.8,2428.7,10.44672384]
[1730752218601,2.0,2428.8,2428.7,10.99672384]
[1730752218999,2.0,2428.8,2428.7,10.7236004]
[1730752219203,1.14126754,2428.8,2428.7,13.45748777]
[1730752219398,1.14126754,2428.8,2428.7,13.88959627]
[1730752219605,4.87169,2429.8,2429.4,4.92042]
[1730752219801,0.7561,2429.8,2429.5,4.55760086]
[1730752220133,0.07518074,2429.7,2429.6,4.28570729]
[1730752220434,0.07518074,2429.7,2429.6,4.55717621]
[1730752220593,0.1057,2429.8,2429.7,4.92833]
[1730752220928,0.1057,2429.8,2429.7,5.36961621]
[1730752222057,0.1057,2429.8,2429.7,4.92833]
[1730752222239,0.1057,2429.8,2429.7,5.3689492]
[1730752222998,0.1057,2429.8,2429.7,8.95874879]
[1730752223318,0.1057,2429.8,2429.7,8.8864492]
[1730752223499,0.1057,2429.8,2429.7,8.8764492]
[1730752223700,0.1057,2429.8,2429.7,8.3264492]
[1730752226533,0.1057,2429.8,2429.7,8.32507476]
[1730752227169,0.1057,2429.8,2429.7,8.87507476]
[1730752227348,0.1057,2429.8,2429.7,8.88507476]
[1730752227914,0.1057,2429.8,2429.7,8.87507476]
[1730752230018,0.1057,2429.8,2429.7,8.43583]
[1730752230223,0.1057,2429.8,2429.7,8.87453843]
[1730752230470,0.18169162,2429.8,2429.7,8.87453843]
[1730752231472,0.1057,2429.8,2429.7,8.05455411]
[1730752232172,0.18169941,2429.8,2429.7,8.32440929]
[1730752232389,0.18169941,2429.8,2429.7,0.16872411]
[1730752232540,0.18169941,2429.8,2429.6,0.16872411]
[1730752233370,0.18169941,2429.8,2429.4,4.11623]
[1730752233690,4.29725941,2429.8,2429.5,0.1686523]
[1730752234028,8.41290941,2429.8,2429.3,4.91238]
[1730752234271,4.29725941,2429.8,2429.4,4.36714202]
[1730752234427,4.29725941,2429.8,2429.4,4.19845651]
[1730752236166,0.18169941,2429.8,2429.5,4.11602]
[1730752236480,0.18169941,2429.8,2429.7,4.11573]
[1730752237658,0.18169941,2429.8,2429.7,4.28447267]
[1730752238047,0.18169941,2429.8,2429.7,4.11573]
[1730752238500,0.18169941,2429.8,2429.7,4.28450912]
[1730752239485,0.18169941,2429.8,2429.7,0.16877912]
[1730752239701,0.18169941,2429.8,2429.6,4.11581]
[1730752239997,0.18169941,2429.8,2429.7,0.16883731]
[1730752240171,0.18169941,2429.8,2429.6,0.16883731]
[1730752240885,0.18169941,2429.8,2429.5,0.16883731]
[1730752241183,0.18169941,2429.8,2429.6,0.16883731]
[1730752241396,0.18169941,2429.8,2429.7,0.16883731]
[1730752241563,0.18169941,2429.8,2429.6,0.16883731]
[1730752241757,0.18169941,2429.8,2429.7,0.16883731]
[1730752242000,0.18169941,2429.8,2429.6,0.16883731]
[1730752242231,0.18169941,2429.8,2429.5,4.11607]
[1730752242371,0.18169941,2429.8,2429.7,0.16899277]
[1730752242576,0.18169941,2429.8,2429.6,0.16899277]
[1730752242793,0.18169941,2429.8,2429.7,0.16899277]
[1730752242978,0.18169941,2429.8,2429.6,0.16899277]
[1730752243179,0.18169941,2429.8,2429.7,0.16899277]
[1730752244869,0.18169941,2429.8,2429.7,4.28472277]
[1730752245064,0.18169941,2429.8,2429.7,0.43940698]
[1730752245568,0.18169941,2429.8,2429.7,0.16899277]
[1730752246018,0.18169941,2429.8,2429.7,0.43940698]
[1730752246181,0.18169941,2429.8,2429.5,4.116]
[1730752246394,0.18169941,2429.8,2429.7,0.16935964]
[1730752246709,0.18169941,2429.8,2429.7,0.44036091]
[1730752247466,4.29725941,2429.8,2429.7,0.44036091]
[1730752247703,5.06115941,2429.8,2429.7,0.44036091]
[1730752248016,5.06115941,2429.8,2429.7,0.16935964]
[1730752249304,5.97881635,2429.8,2429.7,0.16935964]
[1730752250229,4.11584,2429.7,2429.3,0.27143977]
[1730752250434,4.11584,2429.7,2429.2,4.19888244]
[1730752250629,0.0757032,2429.6,2429.3,0.44105296]
[1730752250834,4.1916132,2429.6,2429.4,0.44105296]
[1730752251132,4.1916132,2429.6,2429.5,0.44105296]
[1730752253910,4.1916132,2429.6,2429.5,0.44086354]
[1730752253911,0.0757032,2429.6,2429.5,0.44086354]
[1730752254533,4.1916032,2429.6,2429.5,0.44086354]
[1730752256135,4.1916032,2429.6,2429.5,0.16955295]
[1730752256532,0.0757032,2429.6,2429.5,0.44086354]
[1730752256732,4.98519,2429.8,2429.5,0.44086354]
[1730752256936,4.98519,2429.8,2429.6,0.44085613]
[1730752257239,0.07560184,2429.7,2429.4,4.11623]
[1730752257445,9.10086,2429.8,2429.5,0.44083135]
[1730752257757,4.11577,2429.7,2429.3,4.11638]
[1730752258043,4.98522,2429.8,2429.6,0.1695596]
[1730752258205,9.10091,2429.8,2429.7,0.169562]
[1730752259245,10.011001,2429.8,2429.7,0.169562]
[1730752260735,10.011001,2429.8,2429.4,0.27153347]
[1730752260736,4.11607,2429.5,2429.4,0.27153347]
[1730752261074,4.11742,2428.7,2428.6,0.28269782]
[1730752261264,0.7632,2428.9,2428.6,4.11752]
[1730752261469,4.11683,2429.1,2428.7,0.44139289]
[1730752261762,4.90775,2428.9,2428.8,0.16975653]
[1730752262065,4.90775,2428.9,2428.4,0.27141337]
[1730752262066,4.1176,2428.6,2428.4,0.27141337]
[1730752262278,4.11817,2428.3,2428.1,1.09832217]
[1730752262435,4.11817,2428.3,2428.2,0.44061199]
[1730752262763,4.11817,2428.3,2428.2,0.16945408]
[1730752263433,4.11837,2428.2,2427.8,0.27115791]
[1730752263635,0.7906,2428.4,2427.9,4.64151126]
[1730752263829,0.7906,2428.4,2428.0,0.98007137]
[1730752264033,4.11827,2428.2,2427.8,4.87144]
[1730752264263,4.11827,2428.2,2427.9,0.44010902]
[1730752264561,4.11827,2428.2,2427.8,0.7525]
[1730752264562,0.07487256,2428.1,2428.0,0.16926276]
[1730752264990,4.11818,2428.3,2428.0,0.16926276]
[1730752265155,4.11818,2428.3,2428.1,0.16926276]
[1730752265362,0.07478281,2428.2,2427.9,0.16926276]
[1730752265691,4.11818,2428.3,2428.0,0.16926276]
[1730752265890,0.07478281,2428.1,2427.9,0.16926276]
[1730752266188,4.11818,2428.3,2428.0,0.16926276]
[1730752267495,4.11717631,2428.2,2427.9,0.16926276]
[1730752267854,4.11717631,2428.2,2427.8,1.19260902]
[1730752268056,4.11717631,2428.2,2427.8,0.92176276]
[1730752268996,4.11717631,2428.2,2427.8,5.04068276]
[1730752269292,4.11717631,2428.2,2427.9,0.16926276]
[1730752269862,8.23558631,2428.2,2427.9,0.16926276]
[1730752270203,4.11849,2428.1,2427.8,0.16926276]
[1730752270571,4.11811,2428.3,2427.8,0.16926276]
[1730752270957,8.23635,2428.3,2427.8,4.28816276]
[1730752271177,8.23635,2428.3,2427.7,4.11897]
[1730752271178,4.11811,2428.3,2427.9,0.16926276]
[1730752271391,4.11842,2428.2,2427.8,0.16926276]
[1730752271597,4.11852,2428.1,2427.8,0.16926276]
[1730752272106,4.11842,2428.2,2427.8,0.16926276]
[1730752272276,4.11842,2428.2,2427.8,0.16868673]
[1730752273210,4.11838,2428.2,2427.8,0.16868673]
[1730752273376,4.11852,2428.1,2427.8,0.16868673]
[1730752273573,4.11838,2428.2,2427.8,0.16868673]
[1730752273803,8.23676,2428.2,2427.8,0.16868673]
[1730752274001,8.23674,2428.2,2427.8,0.16868673]
[1730752274307,4.11847,2428.1,2427.8,0.16868673]
[1730752274513,4.1181,2428.3,2427.7,0.16868673]
[1730752274682,3.57052885,2428.5,2427.6,0.16868673]
[1730752274683,4.11903,2427.8,2427.6,0.16868673]
[1730752274884,4.87443,2427.8,2427.5,0.16868673]
[1730752275881,0.7554,2428.1,2427.5,4.28802673]
[1730752276103,4.11838,2428.2,2427.7,4.11911]
[1730752276405,4.11844,2428.1,2427.7,4.11911]
[1730752276606,4.19301257,2428.0,2427.6,0.7594]
[1730752276793,4.11878,2427.9,2427.6,0.7594]
[1730752277113,4.1187,2428.0,2427.6,0.92810817]
[1730752277317,0.07439257,2427.8,2427.6,0.92810817]
[1730752277607,0.07434572,2427.7,2427.6,5.04738817]
[1730752278111,4.87362,2428.3,2427.6,1.19809692]
[1730752278112,4.11866,2428.0,2427.6,1.19809692]
[1730752278415,4.11898,2427.8,2427.5,0.16870817]
[1730752278630,4.91417,2427.9,2427.6,0.16870817]
[1730752278631,4.98851572,2427.9,2427.6,0.16870817]
[1730752278794,4.91417,2427.9,2427.5,0.16870817]
[1730752279112,0.07434572,2427.8,2427.6,0.16870817]
[1730752279325,0.07434572,2427.8,2427.5,0.16870817]
[1730752279478,0.07434572,2427.8,2427.6,0.16870817]
[1730752279670,0.07434572,2427.8,2427.5,0.16870817]
[1730752279975,0.07434572,2427.8,2427.6,0.16892954]
[1730752280276,0.07434572,2427.8,2427.5,4.28836954]
[1730752280556,0.07434572,2427.8,2427.6,4.28820954]
[1730752280758,0.07434572,2427.8,2427.7,4.28804954]
[1730752280962,4.11835,2428.2,2427.8,4.11895]
[1730752281145,0.7953,2428.3,2427.7,4.95159]
[1730752281337,8.23673,2428.2,2427.8,0.16894741]
[1730752281856,4.11852,2428.1,2427.9,0.16894741]
[1730752282059,4.11852,2428.1,2427.8,0.16894741]
[1730752282368,4.11828,2428.2,2427.9,0.16894741]
[1730752282560,4.11828,2428.2,2427.8,4.38929551]
[1730752282766,4.91343,2428.3,2427.9,0.16899331]
[1730752282925,4.91343,2428.3,2428.0,0.16899331]
[1730752283266,4.91343,2428.3,2427.8,4.38929551]
[1730752283563,4.91343,2428.3,2427.9,0.16905078]
[1730752283766,4.91343,2428.3,2428.0,0.16905078]
[1730752283970,4.91343,2428.3,2427.8,4.38929551]
[1730752284127,4.11835,2428.2,2427.8,4.11888]
[1730752284327,4.11835,2428.2,2427.9,0.16910785]
[1730752284560,4.11835,2428.2,2428.0,0.16910785]
[1730752284751,4.11835,2428.2,2428.1,0.16910785]
[1730752284936,4.91343,2428.3,2428.1,0.16910785]
[1730752285136,4.91343,2428.3,2428.2,0.1691876]
[1730752286870,4.11779,2428.5,2428.2,0.1691876]
[1730752287036,4.11779,2428.5,2428.1,4.94605]
[1730752287037,4.11779,2428.5,2428.3,0.1691876]
[1730752287237,4.91169,2428.6,2428.1,4.94605]
[1730752287238,4.91169,2428.6,2428.4,0.1691876]
[1730752287590,4.91169,2428.6,2428.1,0.8277]
[1730752287874,4.11791,2428.5,2428.2,0.44066491]
[1730752288038,4.11795,2428.4,2428.3,0.16947658]
[1730752288234,4.11795,2428.4,2428.3,0.44093231]
[1730752288647,4.1178,2428.5,2428.3,0.44093231]
[1730752288844,4.11752,2428.7,2428.4,0.44093231]
[1730752289046,4.11728,2428.8,2428.5,1.26863231]
[1730752289257,4.11728,2428.8,2428.6,0.44093231]
[1730752289460,4.11728,2428.8,2428.7,0.44093231]
[1730752290637,4.91122,2428.9,2428.7,0.44093231]
[1730752290844,4.11704,2429.0,2428.8,0.44093231]
[1730752291053,4.11704,2429.0,2428.9,0.16947658]
[1730752291489,4.11715,2428.9,2428.5,4.94545]
[1730752291639,4.11715,2428.9,2428.6,0.44159496]
[1730752291974,4.11715,2428.9,2428.7,0.44159496]
[1730752292177,4.11715,2428.9,2428.8,0.44159496]
[1730752294454,4.11715,2428.9,2428.8,0.44156874]
[1730752294767,4.19170651,2428.9,2428.8,0.44156874]
[1730752295281,4.19170651,2428.9,2428.8,0.44153046]
[1730752295496,4.19170651,2428.9,2428.5,0.8277]
[1730752295690,4.19170651,2428.9,2428.6,0.16980046]
[1730752295849,4.11737,2428.8,2428.7,0.44148204]
[1730752296182,4.89627,2428.8,2428.7,0.16980046]
[1730752296386,9.79975025,2428.8,2428.7,0.16980046]
[1730752296843,0.7789,2428.7,2428.2,0.27165967]
[1730752297047,4.1181,2428.3,2428.0,0.28309521]
[1730752297252,4.1181,2428.3,2428.1,0.44143449]
[1730752297470,4.1181,2428.3,2427.9,1.05869521]
[1730752297471,4.1181,2428.3,2428.2,0.44143449]
[1730752297897,4.897,2428.3,2428.2,0.44143449]
[1730752298188,5.798497,2428.3,2428.2,0.44143449]
[1730752298755,4.11872,2428.0,2427.5,9.01434]
[1730752298953,4.11872,2428.0,2427.6,0.55468797]
[1730752299186,4.11872,2428.0,2427.7,0.44143166]
[1730752299462,4.11872,2428.0,2427.6,0.28302822]
[1730752299463,4.11872,2428.0,2427.8,0.44143166]
[1730752299662,8.23749,2428.0,2427.9,0.44143166]
[1730752301994,4.11838,2428.2,2427.9,0.44143166]
[1730752302200,4.11838,2428.2,2428.0,0.44143166]
[1730752302515,4.11838,2428.2,2427.9,0.7989]
[1730752302816,4.11838,2428.2,2428.0,0.441367]
[1730752302976,4.11861,2428.0,2427.9,0.7989]
[1730752303178,4.11861,2428.0,2427.9,0.44138172]
[1730752303379,4.11844,2428.1,2427.9,0.44138172]
[1730752303685,4.11844,2428.1,2428.0,0.44138172]
[1730752306179,4.11844,2428.1,2427.7,4.91801]
[1730752306515,4.11844,2428.1,2427.8,0.44140171]
[1730752306717,4.11844,2428.1,2427.9,0.44140171]
[1730752306919,4.11844,2428.1,2428.0,0.44140171]
[1730752308188,4.11844,2428.1,2428.0,0.16975994]
[1730752308918,4.11844,2428.1,2428.0,0.44144465]
[1730752309224,4.11844,2428.1,2428.0,0.16975994]
[1730752309692,4.19282086,2428.1,2428.0,0.44144465]
[1730752310145,0.07438086,2428.1,2428.0,0.44144465]
[1730752310333,4.19282086,2428.1,2428.0,0.44144465]
[1730752310528,0.07438086,2428.1,2428.0,0.44144465]
[1730752313777,4.19282086,2428.1,2428.0,0.44144465]
[1730752315736,4.19282086,2428.1,2428.0,0.16975994]
[1730752316238,4.19282086,2428.1,2428.0,0.44144465]
[1730752316893,4.11865,2428.0,2427.7,0.7989]
[1730752317552,8.31146086,2428.1,2427.8,0.44158655]
[1730752317751,0.0743281,2428.0,2427.9,0.44158655]
[1730752318142,4.1929381,2428.0,2427.9,0.44158655]
[1730752318753,0.0743281,2428.0,2427.9,0.44158655]
[1730752320041,4.1929381,2428.0,2427.9,0.44158655]
[1730752320561,4.1929381,2428.0,2427.7,0.7989]
[1730752320885,0.0743281,2428.0,2427.8,0.44163725]
[1730752321085,0.0743281,2428.0,2427.9,0.44163725]
[1730752322086,0.0743281,2428.0,2427.9,5.35911725]
[1730752322245,4.11819,2428.3,2427.9,1.24033725]
[1730752322445,4.11819,2428.3,2428.0,0.44163725]
[1730752322782,4.11819,2428.3,2428.1,0.44163725]
[1730752322941,4.11819,2428.3,2428.2,0.16985053]
[1730752323145,4.11819,2428.3,2428.2,0.16991297]
[1730752323465,4.11819,2428.3,2428.2,0.44188046]
[1730752324677,4.19253762,2428.3,2428.2,0.44188046]
[1730752326978,4.19253762,2428.3,2428.2,0.4424862]
[1730752327151,4.11828,2428.2,2427.9,0.7987]
[1730752327355,4.11828,2428.2,2428.0,0.17018132]
[1730752327356,0.07435542,2428.1,2428.0,0.17018132]
[1730752327566,0.07435542,2428.1,2428.0,0.44249735]
[1730752328800,4.19279542,2428.1,2428.0,0.44249735]
[1730752330389,4.95509542,2428.1,2428.0,0.44249735]
[1730752330596,4.11885,2427.9,2427.6,0.85883101]
[1730752330888,4.11885,2427.9,2427.7,0.44256764]
[1730752330889,4.19343882,2427.8,2427.7,0.44256764]
[1730752331064,0.07437882,2427.8,2427.7,0.44256764]